{"text_format":"3","workbook":"xlsx","n_sheets":3,"sheets":["Лист1","Лист2","Лист3"],"read":"whole","date_system":"1900"}

{"sheet":"Лист1","index":0,"n_rows":27,"n_cols":27,"rows_kept":27,"merged":[[0,2,0,19],[0,23,0,26],[2,1,3,1],[2,2,2,3],[2,4,2,5],[2,6,2,7],[2,8,2,9],[2,10,2,11],[2,12,2,13],[2,14,2,15],[2,16,2,17],[2,18,2,19],[2,22,3,22],[2,23,2,24],[2,25,2,26],[19,2,19,3],[20,2,20,3],[21,2,21,3],[22,2,22,3],[23,2,23,3],[24,2,24,3]]}
[null,null,"ПОДДОРСКИЙ РАЙОН",{"$nulls":20},"ПОДДОРСКИЙ РАЙОН"]
[null,null,{"$f":"#REF!+1","v":{"$error":"#REF!"}},null,{"$f":"C2+1","v":{"$error":"#REF!"}},null,{"$f":"E2+1","v":{"$error":"#REF!"}},null,{"$f":"G2+1","v":{"$error":"#REF!"}},null,{"$f":"I2+1","v":{"$error":"#REF!"}},null,{"$f":"K2+1","v":{"$error":"#REF!"}},null,{"$f":"M2+1","v":{"$error":"#REF!"}},null,{"$f":"O2+1","v":{"$error":"#REF!"}},null,{"$f":"Q2+1","v":{"$error":"#REF!"}},{"$nulls":4},{"$f":"S2+1","v":{"$error":"#REF!"}},null,{"$f":"X2+1","v":{"$error":"#REF!"}}]
[null,"ПРИЛОЖЕНИЕ 1 - информация на сайте и информационных досках учреждений","МАУ «Поддорское межпоселенческое социально-культурное объединение»",null,"Переездовский сельский Дом культуры",null,"Белебелковский  сельский Дом культуры имени Е.И.Орловой",null,"Бураковский сельский Дом культуры",null,"Заозерский сельский Дом культуры",null,"Поддорский краеведческий музей",null,"Нивский сельский Дом культуры",null,"Масловский сельский Дом культуры",null,"Перегинский сельский Дом культуры",{"$nulls":3},"ПРИЛОЖЕНИЕ 1 - информация на сайте и информационных досках учреждений","Переходский сельский клуб",null,"Отдел народного творчества"]
[null,null,"наличие информации на сайте (ссылка)","Наличие на информационной доске","наличие информации на сайте (ссылка)","Наличие на информационной доске","наличие информации на сайте (ссылка)","Наличие на информационной доске","наличие информации на сайте (ссылка)","Наличие на информационной доске","наличие информации на сайте (ссылка)","Наличие на информационной доске","наличие информации на сайте (ссылка)","Наличие на информационной доске","наличие информации на сайте (ссылка)","Наличие на информационной доске","наличие информации на сайте (ссылка)","Наличие на информационной доске","наличие информации на сайте (ссылка)","Наличие на информационной доске",{"$nulls":3},"наличие информации на сайте (ссылка)","Наличие на информационной доске","наличие информации на сайте (ссылка)","Наличие на информационной доске"]
[null,"Блок 1.1",{"$nulls":20},"Блок 1.1"]
[1,"Полное и сокращенное наименование организации культуры, почтовый адрес, контактные телефоны и адреса электронной почты","https://pmsko.nubex.ru/about/details/","присутствует",null,"присутствует",null,"присутствует",null,"присутствует",null,"присутствует",null,"присутствует",null,"присутствует",null,"присутствует",null,"присутствует",null,1,"Полное и сокращенное наименование организации культуры, почтовый адрес, контактные телефоны и адреса электронной почты",null,"присутствует",null,"присутствует"]
[2,"Место нахождения организации культуры и ее филиалов (при наличии)","https://pmsko.nubex.ru/about/details/","присутствует",null,"присутствует",null,"присутствует",null,"присутствует",null,"присутствует",null,"присутствует",null,"присутствует",null,"присутствует",null,"присутствует",null,2,"Место нахождения организации культуры и ее филиалов (при наличии)",null,"присутствует",null,"присутствует"]
[3,"Дата создания организации культуры, сведения об учредителе/учредителях, контактные телефоны, адрес сайта, адреса электронной почты учредителя/учредителей","https://pmsko.nubex.ru/about/details/","присутствует",null,"присутствует",null,"присутствует",null,"присутствует",null,"присутствует",null,"присутствует",null,"присутствует",null,"присутствует",null,"присутствует",null,3,"Дата создания организации культуры, сведения об учредителе/учредителях, контактные телефоны, адрес сайта, адреса электронной почты учредителя/учредителей",null,"присутствует",null,"присутствует"]
[4,"Учредительные документы (копия устава организации культуры, свидетельство о государственной регистрации, решения учредителя о создании организации культуры и назначении ее руководителя, положения о филиалах и представительствах (при наличии))","https://pmsko.nubex.ru/5027/",{"$nulls":18},4,"Учредительные документы (копия устава организации культуры, свидетельство о государственной регистрации, решения учредителя о создании организации культуры и назначении ее руководителя, положения о филиалах и представительствах (при наличии))"]
[5,"Структура и органы управления организации культуры; фамилии, имена, отчества и должности руководителей организации культуры, ее  структурных подразделений и филиалов (при их наличии), контактные телефоны, адреса сайтов структурных подразделений (при наличии), адреса электронной почты","https://pmsko.nubex.ru/collectives/","присутствует",null,"присутствует",null,"присутствует",null,"присутствует",null,"присутствует",null,"присутствует",null,"присутствует",null,"присутствует",null,"присутствует",null,5,"Структура и органы управления организации культуры; фамилии, имена, отчества и должности руководителей организации культуры, ее  структурных подразделений и филиалов (при их наличии), контактные телефоны, адреса сайтов структурных подразделений (при наличии), адреса электронной почты",null,"присутствует",null,"присутствует"]
[6,"Режим, график работы организации культуры","https://pmsko.nubex.ru/","присутствует",null,"присутствует",null,"присутствует",null,"присутствует",null,"присутствует",null,"присутствует",null,"присутствует",null,"присутствует",null,"присутствует",null,6,"Режим, график работы организации культуры",null,"присутствует",null,"присутствует"]
[7,"Виды предоставляемых услуг организацией культуры","отсутствует","присутствует",null,"присутствует",null,"присутствует",null,"присутствует",null,"присутствует",null,"присутствует",null,"присутствует",null,"присутствует",null,"присутствует",null,7,"Виды предоставляемых услуг организацией культуры",null,"присутствует",null,"присутствует"]
[8,"Перечень оказываемых платных услуг (при наличии)*; цены (тарифы) на услуги (при наличии платных услуг), копии документов о порядке предоставления услуг за плату, нормативных правовых актов, устанавливающих цены (тарифы) на услуги (при наличии платных услуг)*","отсутствует","присутствует",null,"присутствует",null,"присутствует",null,"присутствует",null,"присутствует",null,"присутствует",null,"присутствует",null,"присутствует",null,"присутствует",null,8,"Перечень оказываемых платных услуг (при наличии)*; цены (тарифы) на услуги (при наличии платных услуг), копии документов о порядке предоставления услуг за плату, нормативных правовых актов, устанавливающих цены (тарифы) на услуги (при наличии платных услуг)*",null,"присутствует",null,"присутствует"]
[9,"Информация о материально-техническом обеспечении предоставления услуг организацией культуры;","отсутствует",{"$nulls":18},9,"Информация о материально-техническом обеспечении предоставления услуг организацией культуры;"]
[10,"Копия плана финансово-хозяйственной деятельности организации культуры, утвержденного в установленном законодательством Российской Федерации порядке, или бюджетной сметы (информация об объеме предоставляемых услуг)","отсутствует",{"$nulls":18},10,"Копия плана финансово-хозяйственной деятельности организации культуры, утвержденного в установленном законодательством Российской Федерации порядке, или бюджетной сметы (информация об объеме предоставляемых услуг)"]
[11,"Информация о планируемых мероприятиях (анонсы, афиши, акции), новости, события","https://pmsko.nubex.ru/afisha/","присутствует",null,"присутствует",null,"присутствует",null,"присутствует",null,"присутствует",null,"присутствует",null,"присутствует",null,"присутствует",null,"присутствует",null,11,"Информация о планируемых мероприятиях (анонсы, афиши, акции), новости, события",null,"присутствует",null,"присутствует"]
[12,"Копия лицензий на осуществление деятельность, подлежащей лицензированию в соответствии с законодательством Российской Федерации (при осуществлении соответствующих видов деятельности)*",{"$nulls":19},12,"Копия лицензий на осуществление деятельность, подлежащей лицензированию в соответствии с законодательством Российской Федерации (при осуществлении соответствующих видов деятельности)*"]
[13,"Результаты независимой оценки качества условий оказания услуг, планы по улучшению  качества работы организации культуры (по устранению недостатков, выявленных по итогам независимой оценки качества) ","отсутствует","отсутствует",null,"отсутствует",null,"отсутствует",null,"отсутствует",null,"отсутствует",null,"отсутствует",null,"отсутствует",null,"отсутствует",null,"отсутствует",null,13,"Результаты независимой оценки качества условий оказания услуг, планы по улучшению  качества работы организации культуры (по устранению недостатков, выявленных по итогам независимой оценки качества) ",null,"отсутствует",null,"отсутствует"]
[null,"Блок 1.2.",{"$f":"12-COUNTIF(C6:C18,\"отсутствует\")","v":7},{"$f":"10-COUNTIF(D6:D18,\"отсутствует\")","v":9},null,9,null,9,null,9,null,{"$f":"10-COUNTIF(L6:L18,\"отсутствует\")","v":9},null,9,null,9,null,9,null,9,null,null,"Блок 1.2.",null,9,null,9]
[14,"обратная связь посредством телефона;","присутствует",{"$nulls":18},14,"обратная связь посредством телефона;"]
[15,"обратная связь посредством электронной почты;","присутствует",{"$nulls":18},15,"обратная связь посредством электронной почты;"]
[16,"обратная связь посредством  электронных сервисов (форма для подачи электронного обращения/жалобы/предложения; раздел «Часто задаваемые вопросы»; получение консультации по оказываемым услугам и пр.);","https://pmsko.nubex.ru/services/contact/",{"$nulls":18},16,"обратная связь посредством  электронных сервисов (форма для подачи электронного обращения/жалобы/предложения; раздел «Часто задаваемые вопросы»; получение консультации по оказываемым услугам и пр.);"]
[17,"обеспечение технической возможности выражения получателем услуг мнения о качестве оказания услуг (наличие анкеты для опроса граждан или гиперссылки на нее).","отсутствует",{"$nulls":18},17,"обеспечение технической возможности выражения получателем услуг мнения о качестве оказания услуг (наличие анкеты для опроса граждан или гиперссылки на нее)."]
[18,"FAQ (вопрос-ответ)","https://pmsko.nubex.ru/4788/",{"$nulls":18},18,"FAQ (вопрос-ответ)"]
[null,null,{"$f":"5-COUNTIF(C20:D24,\"отсутствует\")","v":4}]
[]
[null,"Подготовлено: ООО \"МА \"МЕДИА-ПОЛЮС\""]

{"sheet":"Лист2","index":1,"n_rows":73,"n_cols":6,"rows_kept":73,"merged":[[2,3,2,5],[3,3,3,5],[39,1,39,4]]}
[]
[]
[null,null,"анкет"]
[]
[null,null,"Параметр оценки","САЙТ","СТЕНД"]
[null,1,"полное и сокращенное наименование, место нахождения, почтовый адрес, схема проезда;"]
[null,2,"дата создания организации, сведения об учредителе (учредителях);"]
[null,3,"учредительные документы (копия устава, свидетельство о государственной регистрации, решение учредителя о создании и о назначении руководителя организации культуры, положения о филиалах и представительствах);"]
[null,4,"структуру организации культуры, режим, график работы, контактные телефоны, адреса электронной почты;"]
[null,5,"фамилии, имена отчества, должности руководящего состава организации культуры, ее структурных подразделений и филиалов (при их наличии);"]
[null,6,"сведения о видах предоставляемых услуг;"]
[null,7,"копии нормативных правовых актов, устанавливающих цены (тарифы) на услуги либо порядок их установления, перечень оказываемых платных услуг, цены (тарифы) на услуги;"]
[null,8,"копию плана финансово-хозяйственной деятельности организации культуры, утвержденного в установленном законодательством Российской Федерации порядке, или бюджетной сметы (информация об объеме предоставляемых услуг);"]
[null,9,"информацию о материально-техническом обеспечении предоставления услуг организацией культуры;"]
[null,10,"копии лицензий на осуществление деятельности, подлежащей лицензированию в соответствии с законодательством Российской Федерации;"]
[null,11,"информацию о планируемых мероприятиях;"]
[null,12,"информацию о выполнении государственного (муниципального) задания, отчет о результатах деятельности учреждения;"]
[null,13,"результаты независимой оценки качества оказания услуг организациями культуры;"]
[null,14,"план по улучшению качества работы организации;"]
[null,15,"информацию, размещение и опубликование которой являются обязательными в соответствии с законодательством Российской Федерации;"]
[null,16,"информацию, которая размещается и опубликовывается по решению учредителя организации культуры;"]
[null,17,"информацию, которая размещается и опубликовывается по решению организации культуры;"]
[]
[]
[null,19,"обратная связь посредством телефона;"]
[null,20,"обратная связь посредством электронной почты;"]
[null,21,"обратная связь посредством  электронных сервисов (форма для подачи электронного обращения/жалобы/предложения; раздел «Часто задаваемые вопросы»; получение консультации по оказываемым услугам и пр.);"]
[null,22,"обеспечение технической возможности выражения получателем услуг мнения о качестве оказания услуг (наличие анкеты для опроса граждан или гиперссылки на нее)."]
[null,"22а","FAQ (вопрос-ответ)"]
[{"$nulls":5},{"$f":"COUNTIF(F25:F29,\">0\")","v":0}]
{"$rows_empty":9}
[null,"ОЦЕНКА ПО ФОТО/ДОКУМЕНТАМ"]
[null,23,"наличие комфортной зоны отдыха (ожидания);"]
[null,24,"наличие и понятность навигации внутри организации;"]
[null,25,"доступность питьевой воды;"]
[null,26,"наличие и доступность санитарно-гигиенических помещений (чистота помещений, наличие мыла, воды, туалетной бумаги и пр.);"]
[null,27,"санитарное состояние помещений организаций;"]
[null,28,"возможность бронирования услуги/доступность записи на получение услуги (по телефону, с использованием сети \"Интернет\" на официальном сайте организации, при личном посещении и пр.)."]
[{"$nulls":5},{"$f":"COUNTIF(F41:F46,\">0\")","v":0}]
[]
[null,29,"оборудование входных групп пандусами/подъёмными платформами;"]
[null,30,"наличие выделенных стоянок для автотранспортных средств инвалидов;"]
[null,31,"наличие адаптированных лифтов, поручней, расширенных дверных проёмов;"]
[null,32,"наличие сменных кресел-колясок;"]
[null,33,"наличие специально оборудованных санитарно-гигиенических помещений в организации"]
[{"$nulls":5},{"$f":"COUNTIF(F49:F53,\">0\")","v":0}]
[null,34,"дублирование для инвалидов по слуху и зрению звуковой и зрительной информации;"]
[null,35,"дублирование надписей, знаков и иной текстовой и графической информации знаками, выполненными рельефно-точечным шрифтом Брайля;"]
[null,36,"возможность предоставления инвалидам по слуху (слуху и зрению) услуг сурдопереводчика (тифлосурдопереводчика);"]
[null,37,"наличие альтернативной версии официального сайта организации в сети \"Интернет\" для инвалидов по зрению;"]
[null,38,"помощь, оказываемая работниками организации, прошедшими необходимое обучение (инструктирование) (возможность сопровождения работниками организации);"]
[null,39,"наличие возможности предоставления услуги в дистанционном режиме или на дому."]
[{"$nulls":5},{"$f":"COUNTIF(F55:F60,\">0\")","v":0}]
[]
[]
[null,null,"Настоящим подтверждаем, что ИП Мезенцев Фёдор Викторович"]
[null,null,"посетил учреждение с целью проведения \"Независимой оценки качества условий оказания услуг\","]
[null,null,"информация внесена корректно."]
[{"$nulls":4},"дата"]
[]
[]
[null,null,"должность, ФИО",null,"подпись"]
[]
[]
[{"$nulls":3},"место печати"]

{"sheet":"Лист3","index":2,"n_rows":0,"n_cols":0,"rows_kept":0}